bitfinex/quotes_ETHUSD_20250420
["timestamp","ask_amount","ask_price","bid_price","bid_amount"]
[1745171623276,4.83986219,1575.7,1575.6,59.527]
[1745171624576,4.76052544,1575.7,1575.6,59.527]
[1745171631028,8.54956858,1575.8,1575.6,61.07039252]
[1745171631330,6.14,1575.8,1575.7,1.54339252]
[1745171632294,8.42081797,1575.8,1575.7,1.54339252]
[1745171632719,10.83038655,1575.8,1575.7,0.78453006]
[1745171632922,10.83038655,1575.8,1575.6,59.527]
[1745171633123,8.54956858,1575.8,1575.6,59.527]
[1745171633323,2.40956858,1575.7,1575.6,59.527]
[1745171635585,2.40956858,1575.7,1575.6,62.527]
[1745171637343,2.40956858,1575.7,1575.6,62.6134]
[1745171637491,3.19706858,1575.9,1575.6,64.15679252]
[1745171637800,2.28081797,1575.8,1575.6,64.15679252]
[1745171638132,4.69038655,1575.8,1575.6,64.15679252]
[1745171640029,2.40956858,1575.8,1575.6,64.15679252]
[1745171641042,7.57383672,1576.1,1575.6,61.63795326]
[1745171641195,0.43042686,1576.4,1575.7,1.54339252]
[1745171641196,3.21406858,1576.2,1575.7,1.54339252]
[1745171641400,2.40956858,1576.1,1575.7,1.54339252]
[1745171641719,2.40956858,1576.1,1575.7,4.54339252]
[1745171641934,2.40956858,1576.0,1575.7,4.54339252]
[1745171646435,2.40956858,1576.0,1575.7,3.78453006]
[1745171654119,2.40956858,1576.0,1575.8,5.2]
[1745171655930,2.40956858,1576.1,1575.8,5.2]
[1745171656131,2.40956858,1576.1,1575.8,6.74339252]
[1745171658958,2.40956858,1576.1,1575.9,57.321]
[1745171659459,2.73890616,1576.1,1575.9,57.321]
[1745171660241,2.40956858,1576.1,1575.9,57.321]
[1745171663659,2.40956858,1576.1,1576.0,5.2]
[1745171667159,0.8045,1576.2,1576.0,5.2]
[1745171667324,8.54956858,1576.3,1576.0,6.74339252]
[1745171667522,2.2848388,1576.2,1576.0,6.74339252]
[1745171668460,4.69440738,1576.2,1576.0,6.74339252]
[1745171669260,4.69440738,1576.2,1576.0,5.98453006]
[1745171670856,5.44920738,1576.2,1576.0,5.98453006]
[1745171673270,5.44920738,1576.2,1576.1,54.32]
[1745171674562,2.2848388,1576.2,1576.1,58.86339252]
[1745171674761,0.1,1576.4,1576.1,58.86339252]
[1745171674967,2.2848388,1576.3,1576.1,58.86339252]
[1745171676080,2.2848388,1576.3,1576.1,59.34402842]
[1745171679078,2.50956858,1576.4,1576.1,59.34402842]
[1745171680251,2.50956858,1576.4,1576.1,58.58516596]
[1745171681180,3.17336858,1576.3,1576.1,57.32]
[1745171682656,2.40956858,1576.3,1576.1,57.32]
[1745171683777,2.40956858,1576.3,1576.2,5.199]
[1745171693291,2.40956858,1576.3,1576.2,59.509]
[1745171699198,3.19846858,1576.3,1576.2,59.509]
[1745171705713,3.52831544,1576.3,1576.2,59.509]
[1745171706202,4.07831544,1576.3,1576.2,59.509]
[1745171706782,4.08911544,1576.3,1576.2,59.509]
[1745171707885,6.37609807,1576.3,1576.2,59.509]
[1745171709208,12.51609807,1576.3,1576.2,59.509]
[1745171709793,14.92566665,1576.3,1576.2,59.509]
[1745171710199,0.55,1576.2,1575.7,1.63497585]
[1745171710502,2.95956858,1575.8,1575.7,1.63497585]
[1745171710700,6.04625121,1575.8,1575.7,1.63497585]
[1745171715596,6.04625121,1575.8,1575.7,61.15297585]
[1745171720817,6.04625121,1575.8,1575.7,60.34753006]
[1745171721018,6.04625121,1575.8,1575.7,59.518]
[1745171721217,6.65880946,1575.8,1575.7,59.518]
[1745171723292,6.04625121,1575.8,1575.7,59.518]
[1745171724829,6.04625121,1575.8,1575.7,60.34753006]
[1745171726713,5.24655121,1575.8,1575.7,61.15297585]
[1745171729699,6.07005121,1575.8,1575.7,61.15297585]
[1745171732632,6.07005121,1575.8,1575.7,59.518]
[1745171732820,6.68498946,1575.8,1575.7,59.518]
[1745171735901,12.82498946,1575.8,1575.7,59.518]
[1745171744642,12.82498946,1575.8,1575.7,60.34753006]
[1745171744943,12.00148946,1575.8,1575.7,60.34753006]
[1745171745237,12.08082281,1575.8,1575.7,60.34753006]
[1745171746944,12.83302281,1575.8,1575.7,59.518]
[1745171747123,12.75368946,1575.8,1575.7,59.518]
[1745171757062,2.2513336,1575.8,1575.7,59.518]
[1745171757276,4.26830707,1576.3,1576.0,2.33321162]
[1745171757558,4.26830707,1576.3,1576.1,2.91927414]
[1745171757728,1.91543538,1576.2,1576.1,1.08554943]
[1745171758123,6.18374245,1576.2,1576.1,1.08554943]
[1745171760466,6.18374245,1576.2,1576.1,1.56330968]
[1745171762366,1.91543538,1576.2,1576.1,1.56330968]
[1745171762533,0.1,1576.4,1576.1,1.56330968]
[1745171762733,1.91543538,1576.3,1576.1,1.56330968]
[1745171765365,1.91543538,1576.3,1576.2,62.517]
[1745171765570,1.91543538,1576.3,1576.2,64.05330336]
[1745171765757,0.1,1576.4,1576.3,3.0]
[1745171765937,0.1,1576.4,1576.3,4.53630336]
[1745171772084,0.1,1576.4,1576.3,1.53630336]
[1745171778270,0.17929299,1576.4,1576.2,59.517]
[1745171778583,3.28239388,1576.3,1576.2,59.517]
[1745171778966,9.76856257,1576.3,1576.2,59.517]
[1745171786786,9.42239388,1576.3,1576.2,59.517]
[1745171790713,8.61749388,1576.3,1576.2,59.517]
[1745171795921,8.69680199,1576.3,1576.2,59.517]
[1745171806360,8.61749388,1576.3,1576.2,59.517]
[1745171808019,9.39379388,1576.3,1576.2,59.517]
[1745171808218,10.87312269,1576.3,1576.2,59.517]
[1745171809254,10.95243635,1576.3,1576.2,59.517]
[1745171818268,10.40243635,1576.3,1576.2,59.517]
[1745171818558,10.95243635,1576.3,1576.2,59.517]
[1745171829486,13.36358528,1576.3,1576.2,59.517]
[1745171829680,13.28427162,1576.3,1576.2,59.517]
[1745171831987,15.69542055,1576.3,1576.2,59.517]
[1745171834295,13.28427162,1576.3,1576.2,59.517]
[1745171847729,19.94827162,1576.3,1576.2,59.517]
[1745171848024,13.28427162,1576.3,1576.2,59.517]
[1745171848732,12.50797162,1576.3,1576.2,59.517]
[1745171848916,10.55795494,1576.3,1576.2,59.517]
[1745171849233,10.47864281,1576.3,1576.2,60.30283007]
[1745171849521,10.47864281,1576.3,1576.2,59.517]
[1745171850932,11.02864281,1576.3,1576.2,59.517]
[1745171866608,1.92749388,1576.3,1576.2,59.517]
[1745171866949,1.92749388,1576.3,1576.2,63.30283007]
[1745171867451,0.1,1576.4,1576.2,63.30283007]
[1745171869714,1.92079638,1576.3,1576.2,63.30283007]
[1745171869915,0.1,1576.4,1576.2,63.30283007]
[1745171870223,1.92079638,1576.3,1576.2,63.30283007]
[1745171870625,0.1,1576.4,1576.2,63.30283007]
[1745171873653,0.1,1576.4,1576.2,62.517]
[1745171874427,2.51114893,1576.4,1576.2,62.517]
[1745171874645,1.92079638,1576.3,1576.2,62.517]
[1745171882865,4.33194531,1576.3,1576.2,62.517]
[1745171883226,2.47079638,1576.3,1576.2,62.517]
[1745171888481,8.61079638,1576.3,1576.2,62.517]
[1745171890371,11.02194531,1576.3,1576.2,62.517]
[1745171890534,11.10124987,1576.3,1576.2,62.517]
[1745171890733,11.02194531,1576.3,1576.2,62.517]
[1745171898977,8.61079638,1576.3,1576.2,62.517]
[1745171904683,8.06079638,1576.3,1576.2,62.517]
[1745171904882,8.06079638,1576.3,1576.2,63.30283007]
[1745171905918,1.92079638,1576.3,1576.2,63.30283007]
[1745171906050,0.1,1576.4,1576.2,63.30283007]
[1745171906252,1.92227021,1576.3,1576.2,63.30283007]
[1745171906495,0.1,1576.4,1576.2,63.30283007]
[1745171906778,1.92227021,1576.3,1576.2,63.30283007]
[1745171907170,0.1,1576.4,1576.2,63.30283007]
[1745171907480,1.92227021,1576.3,1576.2,63.30283007]
[1745171907683,0.1,1576.4,1576.2,63.30283007]
[1745171907848,1.92227021,1576.3,1576.2,63.30283007]
[1745171908048,0.1,1576.4,1576.2,63.30283007]
[1745171908248,1.92227021,1576.3,1576.2,63.30283007]
[1745171908448,0.1,1576.4,1576.2,63.30283007]
[1745171908857,1.92227021,1576.3,1576.2,63.30283007]
[1745171909051,0.1,1576.4,1576.2,63.30283007]
[1745171909379,1.92227021,1576.3,1576.2,63.30283007]
[1745171909790,0.1,1576.4,1576.2,63.30283007]
[1745171910086,1.92227021,1576.3,1576.2,63.30283007]
[1745171910290,0.1,1576.4,1576.2,63.30283007]
[1745171910495,1.92227021,1576.3,1576.2,63.30283007]
[1745171910787,0.1,1576.4,1576.2,62.517]
[1745171911093,1.92227021,1576.3,1576.2,62.517]
[1745171913087,2.47227021,1576.3,1576.2,62.517]
[1745171916698,2.47227021,1576.3,1576.2,59.517]
[1745171916891,3.05724239,1576.3,1576.2,59.517]
[1745171919010,5.46839132,1576.3,1576.2,59.517]
[1745171920689,4.88341914,1576.3,1576.2,59.517]
[1745171923916,2.47227021,1576.3,1576.2,59.517]
[1745171939707,1.92227021,1576.3,1576.2,60.30283007]
[1745171941236,1.92227021,1576.3,1576.2,59.517]
[1745171943460,0.1,1576.4,1576.2,59.517]
[1745171943803,1.92441355,1576.3,1576.2,59.517]
[1745171944354,0.1,1576.4,1576.2,59.517]
[1745171944539,1.92441355,1576.3,1576.2,62.517]
[1745171944713,0.1,1576.4,1576.2,62.517]
[1745171944913,1.92441355,1576.3,1576.2,62.517]
[1745171945219,0.1,1576.4,1576.2,62.517]
[1745171945645,1.92441355,1576.3,1576.2,62.517]
[1745171946144,0.1,1576.4,1576.2,62.517]
[1745171946347,1.92441355,1576.3,1576.2,62.517]
[1745171946643,0.1,1576.4,1576.2,62.517]
[1745171946946,1.92441355,1576.3,1576.2,62.517]
[1745171947136,0.1,1576.4,1576.2,62.517]
[1745171947336,1.92441355,1576.3,1576.2,62.517]
[1745171947539,0.1,1576.4,1576.2,62.517]
[1745171947841,1.92441355,1576.3,1576.2,62.517]
[1745171948238,0.1,1576.4,1576.2,62.517]
[1745171948745,1.92441355,1576.3,1576.2,62.517]
[1745171948933,0.1,1576.4,1576.2,62.517]
[1745171949365,1.92441355,1576.3,1576.2,62.517]
[1745171949770,0.1,1576.4,1576.2,62.517]
[1745171950052,1.92441355,1576.3,1576.2,62.517]
[1745171950456,0.1,1576.4,1576.2,62.517]
[1745171950757,1.92441355,1576.3,1576.2,62.517]
[1745171951061,0.1,1576.4,1576.2,62.517]
[1745171951361,1.92441355,1576.3,1576.2,62.517]
[1745171951524,0.1,1576.4,1576.2,62.517]
[1745171951857,1.92441355,1576.3,1576.2,62.517]
[1745171952362,0.1,1576.4,1576.2,62.517]
[1745171952520,1.92441355,1576.3,1576.2,62.517]
[1745171952715,0.1,1576.4,1576.2,62.517]
[1745171952968,1.92441355,1576.3,1576.2,62.517]
[1745171953168,0.1,1576.4,1576.2,62.517]
[1745171953564,1.92441355,1576.3,1576.2,62.517]
[1745171953767,0.1,1576.4,1576.2,62.517]
[1745171953980,1.92441355,1576.3,1576.2,62.517]
[1745171954265,0.1,1576.4,1576.2,62.517]
[1745171954626,1.92441355,1576.3,1576.2,62.517]
[1745171954974,0.1,1576.4,1576.2,62.517]
[1745171955150,1.92441355,1576.3,1576.2,62.517]
[1745171955347,0.1,1576.4,1576.2,62.517]
[1745171955553,1.92441355,1576.3,1576.2,62.517]
[1745171955768,0.1,1576.4,1576.2,62.517]
[1745171956071,1.92441355,1576.3,1576.2,62.517]
[1745171963990,0.1,1576.4,1576.2,62.517]
[1745171964288,0.1,1576.4,1576.3,5.206]
[1745171967911,0.1,1576.4,1576.3,59.517]
[1745171975199,2.0249493,1576.4,1576.3,59.517]
[1745172000134,5.81559823,1576.4,1576.3,59.517]
[1745172000298,12.53715805,1576.4,1576.3,59.517]
[1745172030177,10.12600912,1576.4,1576.3,59.517]
[1745172034077,12.53715805,1576.4,1576.3,59.517]
[1745172051419,11.12609823,1576.4,1576.3,59.517]
[1745172056969,11.87939823,1576.4,1576.3,59.517]
[1745172062515,11.95870356,1576.4,1576.3,59.517]
[1745172063512,11.87939823,1576.4,1576.3,59.517]
[1745172072325,11.12609823,1576.4,1576.3,59.517]
[1745172072525,12.24663859,1576.4,1576.3,59.517]
[1745172072907,12.32594361,1576.4,1576.3,59.517]
[1745172077828,12.24663859,1576.4,1576.3,59.517]
[1745172078027,12.32594341,1576.4,1576.3,59.517]
[1745172078934,12.24663859,1576.4,1576.3,59.517]
[1745172080834,13.01883859,1576.4,1576.3,59.517]
[1745172084235,13.01883859,1576.4,1576.3,54.311]
[1745172084436,1.3601,1576.3,1575.1,5.7872]
[1745172084729,21.32278752,1576.4,1575.3,0.78583007]
[1745172084730,2.41114893,1575.8,1575.3,0.78583007]
[1745172085133,1.96309298,1575.7,1575.3,0.78583007]
[1745172085508,1.96309298,1575.7,1575.5,3.0]
[1745172085738,2.41114893,1575.8,1575.5,3.0]
[1745172085926,4.37424191,1575.7,1575.5,3.0]
[1745172093080,2.41114893,1575.6,1575.5,3.0]
[1745172093344,4.36995266,1575.6,1575.4,59.528]
[1745172093548,0.55,1575.5,1575.4,59.528]
[1745172094117,6.69,1575.5,1575.4,59.528]
[1745172094452,7.60011489,1575.5,1575.4,59.528]
[1745172094843,10.01126382,1575.5,1575.4,59.528]
[1745172095249,11.96350008,1575.5,1575.4,59.528]
[1745172096215,12.04284647,1575.5,1575.4,59.528]
[1745172098544,11.05338519,1575.5,1575.4,59.528]
[1745172103553,11.13272809,1575.5,1575.4,59.528]
[1745172106936,11.93432809,1575.5,1575.4,59.528]
[1745172107333,11.85498519,1575.5,1575.4,59.528]
[1745172107633,11.93433229,1575.5,1575.4,59.528]
[1745172107834,13.36888041,1575.5,1575.4,59.528]
[1745172108030,13.28953331,1575.5,1575.4,59.528]
[1745172114335,12.48793331,1575.5,1575.4,59.528]
[1745172114535,12.56728129,1575.5,1575.4,59.528]
[1745172119049,11.05338519,1575.5,1575.4,59.528]
[1745172119560,10.50338519,1575.5,1575.4,59.528]
[1745172119950,11.05338519,1575.5,1575.4,59.528]
[1745172137492,11.82068519,1575.5,1575.4,59.528]
[1745172137679,9.40953626,1575.5,1575.4,59.528]
[1745172137988,10.59160478,1575.5,1575.4,59.528]
[1745172138375,9.82430478,1575.5,1575.4,59.528]
[1745172148066,1.95223626,1575.5,1575.4,60.31383007]
[1745172148295,4.26830707,1575.9,1575.4,63.92884466]
[1745172148484,1.94620168,1575.8,1575.5,1.40084466]
[1745172148903,1.94620168,1575.8,1575.5,4.40084466]
[1745172150197,12.819456,1576.2,1575.5,4.40084466]
[1745172150374,1.94620168,1575.7,1575.5,10.18804466]
[1745172150574,6.679456,1576.2,1575.5,10.18804466]
[1745172150776,1.94620168,1576.1,1575.5,10.18804466]
[1745172151212,1.94620168,1576.1,1575.5,10.65675308]
[1745172154310,1.94620168,1576.1,1575.5,10.04173849]
[1745172154814,4.35735061,1576.1,1575.5,10.04173849]
[1745172155017,2.41114893,1575.9,1575.5,9.25590842]
[1745172155211,2.41114893,1575.9,1575.5,3.46870842]
[1745172155413,1.95491726,1575.8,1575.5,3.46870842]
[1745172157382,0.55,1576.0,1575.5,3.46870842]
[1745172160012,5.22417673,1576.1,1575.5,3.46870842]
[1745172160401,1.95491726,1576.0,1575.5,3.46870842]
[1745172161013,1.95491726,1576.0,1575.5,9.25590842]
[1745172164112,5.22417673,1576.1,1575.5,9.25590842]
[1745172167510,5.22417673,1576.1,1575.5,9.34230842]
[1745172168798,5.22417673,1576.1,1575.7,3.0]
[1745172168997,1.95451518,1576.0,1575.7,3.0]
[1745172173532,1.95451518,1576.0,1575.8,54.329]
[1745172177337,4.36561049,1576.0,1575.8,54.329]
[1745172177529,2.41109531,1576.0,1575.8,54.329]
[1745172178510,2.41109531,1576.0,1575.9,5.203]
[1745172179420,2.96109531,1576.0,1575.9,5.203]
[1745172179623,3.3942397,1576.0,1575.9,5.203]
[1745172181607,5.34915696,1576.0,1575.9,5.203]
[1745172185021,3.3942397,1576.0,1575.9,5.203]
[1745172190642,2.41109531,1576.0,1575.9,5.203]
[1745172192829,2.41109531,1576.0,1575.9,59.53]
[1745172201281,3.78839531,1576.0,1575.9,59.53]
[1745172202538,5.74492082,1576.0,1575.9,59.53]
[1745172208157,4.91762082,1576.0,1575.9,59.53]
[1745172208566,6.0233829,1576.0,1575.9,59.53]
[1745172214093,4.91762082,1576.0,1575.9,59.53]
[1745172235509,1.95652551,1576.0,1575.9,59.53]
[1745172235713,0.55,1576.1,1575.9,59.53]
[1745172236405,1.95558743,1576.0,1575.9,59.53]
[1745172236713,2.41109531,1576.2,1575.9,59.53]
[1745172237119,1.95558743,1576.1,1576.0,3.0]
[1745172237359,0.1,1576.4,1576.0,4.40084466]
[1745172237847,1.95558743,1576.3,1576.0,4.40084466]
[1745172238417,0.1,1576.4,1576.0,3.78583007]
[1745172238639,1.95558743,1576.2,1576.0,3.78583007]
[1745172238841,0.1,1576.4,1576.0,3.78583007]
[1745172239046,1.95880343,1576.1,1576.0,3.78583007]
[1745172239354,0.1,1576.4,1576.0,3.78583007]
[1745172239658,1.95880343,1576.1,1576.0,3.78583007]
[1745172239958,2.51109531,1576.4,1576.0,3.78583007]
[1745172240319,1.95880343,1576.3,1576.0,3.78583007]
[1745172241062,4.36989874,1576.3,1576.0,3.0]
[1745172241372,2.41109531,1576.3,1576.0,3.0]
[1745172242871,2.41109531,1576.3,1576.0,3.46910015]
[1745172243975,4.36989874,1576.2,1576.0,3.46910015]
[1745172245170,2.41109531,1576.2,1576.0,3.46910015]
[1745172248275,2.41109531,1576.3,1576.0,3.46910015]
[1745172250662,2.41109531,1576.2,1576.0,3.0]
[1745172250890,3.73149531,1576.3,1576.0,3.0]
[1745172251189,0.55,1576.3,1576.0,3.0]
[1745172255524,0.55,1576.3,1576.1,5.201]
[1745172256404,1.32,1576.3,1576.1,5.201]
[1745172256602,1.70310953,1576.3,1576.1,5.201]
[1745172257018,2.41109531,1576.2,1576.1,5.201]
[1745172258834,2.96109531,1576.2,1576.1,5.201]
[1745172259192,4.92070257,1576.2,1576.1,5.201]
[1745172259491,5.67760257,1576.2,1576.1,5.201]
[1745172259690,6.28367378,1576.2,1576.1,5.201]
[1745172259995,8.69476909,1576.2,1576.1,5.201]
[1745172260318,6.28367378,1576.2,1576.1,5.201]
[1745172260516,8.69476909,1576.2,1576.1,5.201]
[1745172261513,6.28367378,1576.2,1576.1,5.201]
[1745172268029,6.28367378,1576.2,1576.1,5.201]
[1745172268214,8.69476909,1576.2,1576.1,5.201]
[1745172269531,6.28367378,1576.2,1576.1,5.201]
[1745172271924,8.69476909,1576.2,1576.1,5.201]
[1745172274021,6.28367378,1576.2,1576.1,5.201]
[1745172275809,8.69476909,1576.2,1576.1,5.201]
[1745172276642,6.28367378,1576.2,1576.1,5.201]
[1745172277139,6.28367378,1576.2,1576.1,59.526]
[1745172278135,6.28367378,1576.2,1576.1,54.325]
[1745172278136,14.83476909,1576.2,1576.1,54.325]
[1745172278337,14.83476909,1576.2,1576.1,59.527]
[1745172278923,12.42367378,1576.2,1576.1,59.527]
[1745172279106,11.66677378,1576.2,1576.1,59.527]
[1745172282839,14.87916909,1576.2,1576.1,59.527]
[1745172285246,12.46807378,1576.2,1576.1,59.527]
[1745172285409,12.54738715,1576.2,1576.1,59.527]
[1745172286210,14.95848246,1576.2,1576.1,59.527]
[1745172286510,14.87916909,1576.2,1576.1,59.527]
[1745172287642,12.46807378,1576.2,1576.1,59.527]
[1745172287842,12.54738635,1576.2,1576.1,59.527]
[1745172288835,11.66677378,1576.2,1576.1,59.527]
[1745172291214,11.06070257,1576.2,1576.1,59.527]
[1745172292940,13.47179788,1576.2,1576.1,59.527]
[1745172293265,8.09219788,1576.2,1576.1,59.527]
[1745172297463,7.33179788,1576.2,1576.1,59.527]
[1745172297775,8.09219788,1576.2,1576.1,59.527]
[1745172297943,8.94765967,1576.2,1576.1,59.527]
[1745172298263,15.08765967,1576.2,1576.1,59.527]
[1745172302590,14.53765967,1576.2,1576.1,59.527]
[1745172302788,13.77725967,1576.2,1576.1,59.527]
[1745172303083,14.32725967,1576.2,1576.1,59.527]
[1745172312688,0.55,1575.9,1575.5,0.0864]
[1745172312884,0.55,1575.7,1575.6,59.532]
[1745172313054,2.96109531,1575.7,1575.6,59.532]
[1745172313580,4.91480624,1575.7,1575.6,59.532]
[1745172337908,4.36480624,1575.7,1575.6,59.532]
[1745172338111,1.95371093,1575.7,1575.6,59.532]
[1745172338313,1.95371093,1575.7,1575.6,60.31786892]
[1745172338616,2.17754644,1575.7,1575.6,60.31786892]
[1745172338913,2.41109531,1575.8,1575.6,60.31786892]
[1745172339226,2.17821711,1575.7,1575.6,60.31786892]
[1745172339581,2.41109531,1575.9,1575.6,60.31786892]
[1745172339794,2.72821711,1575.8,1575.6,60.31786892]
[1745172343008,5.13931242,1575.8,1575.6,60.31786892]
[1745172343983,2.72821711,1575.8,1575.6,59.532]
[1745172344385,2.51430182,1575.8,1575.6,59.532]
[1745172345383,4.92539713,1575.8,1575.6,59.532]
[1745172345783,1.8399206,1575.7,1575.6,59.532]
[1745172346403,2.3899206,1575.7,1575.6,59.532]
[1745172346814,2.08702855,1575.7,1575.6,59.532]
[1745172347294,1.9916325,1575.7,1575.6,62.532]
[1745172349072,0.94537454,1575.7,1575.6,62.532]
[1745172349324,2.41109531,1575.7,1575.6,62.532]
[1745172350015,2.96109531,1575.7,1575.6,59.532]
[1745172350415,5.13931242,1575.7,1575.6,59.532]
[1745172352324,2.17821711,1575.7,1575.6,59.532]
[1745172353529,1.77760986,1575.7,1575.6,62.532]
[1745172353705,1.73289285,1575.7,1575.6,62.532]
[1745172358417,2.4116843,1575.8,1575.6,62.532]
[1745172358618,2.14419101,1575.7,1575.6,62.532]
[1745172365531,0.55,1576.0,1575.7,3.0]
[1745172366647,2.4116843,1576.1,1575.7,3.0]
[1745172367955,3.1836843,1576.2,1575.7,3.0]
[1745172368157,2.4116843,1576.2,1575.7,3.0]
[1745172368455,2.5116843,1576.4,1575.9,3.0]
[1745172368627,0.1,1576.4,1576.1,3.0]
[1745172368834,4.55922672,1576.3,1576.1,3.0]
[1745172369051,2.4116843,1576.3,1576.1,3.0]
[1745172369928,1.74045442,1576.3,1576.1,3.0]
[1745172370258,1.40483948,1576.3,1576.1,3.0]
[1745172375055,1.40483948,1576.3,1576.2,54.325]
[1745172376138,2.71773948,1576.3,1576.2,54.325]
[1745172377473,2.5116843,1576.4,1576.2,54.325]
[1745172377630,0.1,1576.4,1576.2,54.325]
[1745172377828,2.14754242,1576.3,1576.2,58.11086892]
[1745172378060,0.1,1576.4,1576.2,58.11086892]
[1745172378493,2.14754242,1576.3,1576.2,58.11086892]
[1745172380155,2.14754242,1576.3,1576.2,57.325]
[1745172380674,4.55922672,1576.3,1576.2,54.325]
[1745172381048,2.4116843,1576.3,1576.2,54.325]
[1745172381676,3.2230843,1576.3,1576.2,54.325]
[1745172383282,6.03403087,1576.3,1576.2,54.325]
[1745172385083,8.18693338,1576.3,1576.2,54.325]
[1745172392612,9.56562672,1576.3,1576.2,54.325]
[1745172393710,2.15290251,1576.3,1576.2,54.325]
[1745172395418,2.15290251,1576.3,1576.2,59.53]
[1745172401833,0.1,1576.4,1576.2,59.53]
[1745172402036,2.15183067,1576.3,1576.2,59.53]
[1745172402221,0.1,1576.4,1576.2,59.53]
[1745172402437,2.15183067,1576.3,1576.2,59.53]
[1745172402645,0.1,1576.4,1576.2,59.53]
[1745172408655,0.1,1576.4,1576.3,3.0]
[1745172410184,0.1,1576.4,1576.3,9.25028782]
[1745172410470,0.1,1576.4,1576.3,10.65117133]
[1745172411027,0.1,1576.4,1576.3,13.06082502]
[1745172413292,0.1,1576.4,1576.3,10.65117133]
[1745172414570,0.1,1576.4,1576.3,10.03615674]
[1745172414802,0.1,1576.4,1576.3,9.25028782]
[1745172415587,0.1,1576.4,1576.3,68.75528782]
[1745172419403,0.1,1576.4,1576.3,14.45228782]
[1745172421376,0.1,1576.4,1576.3,9.25028782]
[1745172423214,2.26066976,1576.4,1576.3,9.25028782]
[1745172423515,0.1,1576.4,1576.3,9.25028782]
[1745172423678,2.26066976,1576.4,1576.3,9.25028782]
[1745172425511,2.26066976,1576.4,1576.3,68.74928782]
[1745172426032,0.1,1576.4,1576.3,68.74928782]
[1745172429018,0.1,1576.4,1576.3,14.45228782]
[1745172429356,2.26066976,1576.4,1576.3,14.45228782]
[1745172429752,0.7667,1577.0,1576.3,10.03615674]
[1745172429949,0.7667,1577.2,1576.8,3.0]
[1745172430146,0.1,1577.4,1577.0,3.0]
[1745172430147,0.7667,1577.3,1577.0,3.0]
[1745172431415,0.7667,1577.3,1577.0,3.46485797]
[1745172433962,0.7667,1577.3,1577.1,5.7872]
[1745172435345,0.7667,1577.3,1577.2,59.508]
[1745172443877,0.9079,1577.4,1577.3,3.0]
[1745172445541,0.9079,1577.4,1577.3,8.7872]
[1745172445778,0.1,1577.4,1577.3,8.7872]
[1745172456293,3.32100537,1577.4,1577.3,11.0042]
[1745172456588,3.32100537,1577.4,1577.3,14.0042]
[1745172457405,0.9143,1577.4,1577.3,8.217]
[1745172463301,0.9143,1577.4,1577.3,14.0042]
[1745172463909,0.1,1577.4,1577.3,14.79006892]
[1745172464706,0.1,1577.4,1577.3,15.40508351]
[1745172466486,0.1,1577.4,1577.3,14.79006892]
[1745172468707,2.08703778,1577.4,1577.3,14.79006892]
[1745172469017,2.09212053,1577.4,1577.3,14.79006892]
[1745172470290,2.09212053,1577.4,1577.3,9.57306892]
[1745172471486,0.91522053,1577.4,1577.3,9.57306892]
[1745172471786,0.7653,1578.0,1577.4,3.0]
[1745172471986,0.7653,1578.0,1577.5,5.7872]
[1745172472216,0.25236204,1578.0,1577.5,6.2109]
[1745172474410,0.25236204,1578.0,1577.5,6.69050673]
[1745172474615,5.21437438,1577.9,1577.5,6.26680673]
[1745172475392,0.7851,1577.8,1577.7,3.0]
[1745172478024,0.7851,1577.8,1577.7,8.7872]
[1745172478926,6.00727438,1577.9,1577.7,8.7872]
[1745172481219,5.76437438,1578.1,1577.7,8.7872]
[1745172481519,5.76437438,1578.1,1577.7,9.5925]
[1745172482650,5.21437438,1578.2,1577.7,9.5925]
[1745172482821,5.21437438,1578.0,1577.7,8.7872]
[1745172483528,4.84802871,1578.0,1577.7,8.7872]
[1745172483740,4.84802871,1578.0,1577.8,5.7872]
[1745172484455,0.8257,1577.9,1577.8,5.7872]
[1745172484666,0.8257,1577.9,1577.8,8.7872]
[1745172487043,2.02229106,1577.9,1577.8,5.7872]
[1745172487247,3.92614075,1577.9,1577.8,5.7872]
[1745172487623,0.7628,1577.7,1577.6,59.467]
[1745172487852,5.97717438,1577.7,1577.6,62.467]
[1745172488672,7.12489182,1577.7,1577.6,59.467]
[1745172489235,9.02727068,1577.7,1577.6,59.467]
[1745172490943,7.12489182,1577.7,1577.6,59.467]
[1745172491738,9.02727068,1577.7,1577.6,59.467]
[1745172491938,5.97717438,1577.7,1577.6,59.467]
[1745172492673,6.04227438,1577.9,1577.6,59.467]
[1745172493035,1.90237886,1577.8,1577.6,59.467]
[1745172495267,5.21437438,1577.7,1577.6,59.467]
[1745172496496,6.04227438,1577.9,1577.6,59.467]
[1745172496998,1.90237886,1577.8,1577.6,59.467]
[1745172498373,1.90237886,1577.8,1577.7,4.3404]
[1745172501913,1.90237886,1577.8,1577.7,5.12626892]
[1745172502206,6.04227438,1578.1,1577.7,5.12626892]
[1745172502796,6.04227438,1578.1,1577.8,3.0]
[1745172504214,1.90398344,1578.0,1577.8,3.0]
[1745172504716,6.04227438,1578.1,1577.8,3.0]
[1745172507207,6.04227438,1578.1,1578.0,3.0]
[1745172507408,6.04227438,1578.1,1578.0,8.222]
[1745172510221,6.04227438,1578.1,1578.0,62.483]
[1745172511517,6.04227438,1578.1,1578.0,59.483]
[1745172518355,6.64650182,1578.1,1578.0,59.483]
[1745172518742,8.55048526,1578.1,1578.0,59.483]
[1745172521162,9.04448526,1578.1,1578.0,59.483]
[1745172524664,0.8118,1577.8,1577.5,4.3404]
[1745172524870,3.48776003,1577.6,1577.5,7.3404]
[1745172525460,5.39160972,1577.6,1577.5,66.8134]